fUST/lending_fUST_20251028
["ID","MTS","AMOUNT","RATE_DAILY","PERIOD"]
[392507614,1761587432067,-500.0,0.00015267,2]
[392507616,1761587432076,-500.0,0.00015267,2]
[392507618,1761587432086,-500.0,0.00015267,2]
[392507620,1761587432095,-500.0,0.00015267,2]
[392507622,1761587432103,-500.0,0.00015267,2]
[392507624,1761587432112,-500.0,0.00015267,2]
[392507626,1761587432121,-500.0,0.00015267,2]
[392507628,1761587432130,-500.0,0.00015267,2]
[392507649,1761587432140,-500.0,0.00015267,2]
[392507656,1761587432358,-500.0,0.00015267,2]
[392507658,1761587432368,-500.0,0.00015267,2]
[392507660,1761587432377,-500.0,0.00015267,2]
[392507662,1761587432386,-500.0,0.00015267,2]
[392507664,1761587432395,-500.0,0.00015267,2]
[392507666,1761587432405,-500.0,0.00015267,2]
[392507668,1761587432414,-500.0,0.00015267,2]
[392507670,1761587432424,-500.0,0.00015267,2]
[392507672,1761587432433,-500.0,0.00015267,2]
[392507673,1761587432442,-500.0,0.00015267,2]
[392507675,1761587432451,-500.0,0.00015267,2]
[392507677,1761587432460,-500.0,0.00015267,2]
[392507679,1761587432469,-500.0,0.00015267,2]
[392507681,1761587432479,-500.0,0.00015267,2]
[392507683,1761587432488,-500.0,0.00015267,2]
[392507684,1761587432497,-500.0,0.00015267,2]
[392507685,1761587432506,-500.0,0.00015267,2]
[392507686,1761587432515,-500.0,0.00015267,2]
[392507687,1761587432524,-500.0,0.00015267,2]
[392507688,1761587432534,-500.0,0.00015267,2]
[392507689,1761587432543,-495.86037131,0.00015267,2]
[392507690,1761587432552,-500.0,0.00015267,2]
[392507691,1761587432561,-500.0,0.00015267,2]
[392507692,1761587432570,-500.0,0.00015267,2]
[392507693,1761587432580,-500.0,0.00015267,2]
[392507694,1761587432589,-500.0,0.00015267,2]
[392507695,1761587432599,-500.0,0.00015267,2]
[392507696,1761587432608,-500.0,0.00015267,2]
[392507697,1761587432618,-500.0,0.00015267,2]
[392507698,1761587432628,-650.0,0.00015267,2]
[392507699,1761587432637,-198.54853572,0.00015267,2]
[392507700,1761587432647,-500.0,0.00015269,2]
[392507701,1761587432656,-500.0,0.0001527,2]
[392507702,1761587432665,-500.0,0.0001527,2]
[392507703,1761587432675,-721.67,0.0001527,2]
[392507704,1761587432684,-721.67,0.0001527,2]
[392507705,1761587432693,-500.0,0.00015278,2]
[392507706,1761587432703,-721.67,0.00015278,2]
[392507707,1761587432714,-500.0,0.00015279,2]
[392507708,1761587432724,-500.0,0.00015279,2]
[392507709,1761587432733,-500.0,0.00015279,2]
[392507710,1761587432742,-500.0,0.00015279,2]
[392507711,1761587432751,-500.0,0.00015279,2]
[392507712,1761587432760,-500.0,0.00015279,2]
[392507713,1761587432769,-500.0,0.00015279,2]
[392507714,1761587432778,-500.0,0.00015279,2]
[392507715,1761587432788,-500.0,0.00015279,2]
[392507716,1761587432798,-500.0,0.00015279,2]
[392507717,1761587432807,-500.0,0.00015279,2]
[392507718,1761587432817,-500.0,0.00015279,2]
[392507719,1761587432827,-500.0,0.00015279,2]
[392507720,1761587432835,-320.36521843,0.00015279,2]
[392507721,1761587432844,-721.67,0.00015279,2]
[392507722,1761587432855,-721.67,0.00015279,2]
[392507723,1761587432864,-721.67,0.00015279,2]
[392507724,1761587432874,-721.67,0.00015279,2]
[392507725,1761587432883,-721.67,0.00015279,2]
[392507726,1761587432892,-721.67,0.00015279,2]
[392507727,1761587432901,-721.67,0.00015279,2]
[392507728,1761587432910,-721.67,0.00015279,2]
[392507729,1761587432919,-721.67,0.00015279,2]
[392507730,1761587432927,-721.67,0.00015279,2]
[392507731,1761587432936,-721.67,0.00015279,2]
[392507732,1761587432945,-721.67,0.00015279,2]
[392507733,1761587432955,-721.67,0.00015279,2]
[392507734,1761587432964,-721.67,0.00015279,2]
[392507735,1761587432974,-721.67,0.00015279,2]
[392507736,1761587432983,-721.67,0.00015279,2]
[392507737,1761587432993,-721.67,0.00015279,2]
[392507738,1761587433002,-721.67,0.00015279,2]
[392507739,1761587433011,-721.67,0.00015279,2]
[392507740,1761587433020,-721.67,0.00015279,2]
[392507741,1761587433030,-721.69,0.00015279,2]
[392507742,1761587433039,-279726.67395389,0.0001528,2]
[392507743,1761587433060,-699.05110531,0.0001528,2]
[392507772,1761587437722,-78670.20010212,0.0001528,2]
[392507774,1761587437733,-2433.30688775,0.0001528,2]
[392507850,1761587439938,-8470.76795093,0.0001528,2]
[392507851,1761587439947,-500.0,0.00015357,2]
[392507853,1761587439956,-500.0,0.00015357,2]
[392507856,1761587439965,-500.0,0.00015379,2]
[392507857,1761587439975,-500.0,0.00015379,2]
[392507858,1761587439983,-500.0,0.00015382,2]
[392507859,1761587439992,-500.0,0.00015391,2]
[392507860,1761587440001,-500.0,0.00015391,2]
[392507861,1761587440010,-500.0,0.00015391,2]
[392507862,1761587440018,-500.0,0.00015391,2]
[392507863,1761587440027,-500.0,0.00015391,2]
[392507864,1761587440036,-500.0,0.00015391,2]
[392507865,1761587440044,-471.39039858,0.00015391,2]
[392507866,1761587440056,-28.60960142,0.00015391,2]
[392507867,1761587440066,-500.0,0.00015391,2]
[392507868,1761587440075,-500.0,0.00015391,2]
[392507869,1761587440086,-283.20215893,0.00015391,2]
[392507870,1761587440095,-500.0,0.0001544,2]
[392507871,1761587440104,-500.0,0.0001544,2]
[392507872,1761587440113,-410.59734202,0.0001544,2]
[392507873,1761587440122,-502.22635647,0.0001544,2]
[392507874,1761587440132,-500.0,0.0001544,2]
[392507875,1761587440141,-367.52246347,0.0001544,2]
[392507876,1761587440151,-500.0,0.0001544,2]
[392507877,1761587440160,-292.14057621,0.0001544,2]
[392507878,1761587440169,-500.0,0.0001544,2]
[392507879,1761587440178,-337.02921894,0.0001544,2]
[392507928,1761587777467,246.71,0.00030137,120]
[392507929,1761588064124,153.45650044,0.00014967,2]
[392507930,1761588131176,1000.0,0.00014161,2]
[392507931,1761588139348,349.7,0.00015158,3]
[392507932,1761588195534,980.28,0.00030137,120]
[392507934,1761588414354,175.857453,0.00014275,2]
[392507935,1761588414562,175.857453,0.00014275,120]
[392507936,1761588553914,505.499902,0.00013699,2]
[392507988,1761588632049,-180.46974448,0.00015059,2]
[392507990,1761588632059,-258.5459889,0.00015059,2]
[392507992,1761588632069,-1242.36573293,0.00015061,2]
[392507994,1761588632083,-180.46974448,0.00015064,2]
[392507995,1761588632093,-180.46974448,0.00015068,2]
[392507997,1761588632102,-202.96,0.00015095,2]
[392507999,1761588632112,-300.0,0.00015156,2]
[392508001,1761588632123,-300.0,0.00015156,2]
[392508003,1761588632133,-300.0,0.00015156,2]
[392508006,1761588632146,-1200.0,0.00015156,2]
[392508008,1761588632156,-50000.0,0.00015157,2]
[392508010,1761588632167,-478.69379994,0.00015158,2]
[392508012,1761588632176,-1917.74164359,0.00015158,2]
[392508013,1761588632186,-1917.74164359,0.00015158,2]
[392508015,1761588632196,-1917.74164359,0.00015158,2]
[392508017,1761588632206,-1917.74164359,0.00015158,2]
[392508019,1761588632216,-1917.74164359,0.00015158,2]
[392508020,1761588632226,-1917.74164359,0.00015158,2]
[392508022,1761588632235,-1917.74164359,0.00015158,2]
[392508024,1761588632245,-1917.74164359,0.00015158,2]
[392508026,1761588632255,-1917.74164359,0.00015158,2]
[392508028,1761588632264,-1917.74164359,0.00015158,2]
[392508029,1761588632274,-1917.74164359,0.00015158,2]
[392508031,1761588632284,-1917.74164359,0.00015158,2]
[392508033,1761588632293,-1917.74164359,0.00015158,2]
[392508035,1761588632303,-500.0,0.00015158,2]
[392508036,1761588632312,-500.0,0.00015158,2]
[392508037,1761588632322,-151.03661999,0.00015159,2]
[392508038,1761588632331,-151.0,0.00015159,2]
[392508039,1761588632341,-151.0,0.00015159,2]
[392508040,1761588632352,-151.0,0.00015159,2]
[392508041,1761588632362,-151.0,0.00015159,2]
[392508042,1761588632371,-151.0,0.00015159,2]
[392508043,1761588632380,-151.0,0.00015159,2]
[392508044,1761588632390,-151.0,0.00015159,2]
[392508045,1761588632399,-151.0,0.00015159,2]
[392508046,1761588632409,-151.0,0.00015159,2]
[392508047,1761588632418,-151.0,0.00015159,2]
[392508048,1761588632428,-151.0,0.00015159,2]
[392508049,1761588632437,-151.0,0.00015159,2]
[392508050,1761588632446,-151.0,0.00015159,2]
[392508051,1761588632455,-151.0,0.00015159,2]
[392508052,1761588632465,-151.0,0.00015159,2]
[392508053,1761588632474,-151.0,0.00015159,2]
[392508054,1761588632483,-151.0,0.00015159,2]
[392508055,1761588632494,-151.0,0.00015159,2]
[392508056,1761588632503,-151.0,0.00015159,2]
[392508057,1761588632511,-151.0,0.00015159,2]
[392508058,1761588632521,-155.981,0.00015162,2]
[392508059,1761588632530,-500.0,0.00015162,2]
[392508060,1761588632539,-500.0,0.00015164,2]
[392508061,1761588632549,-500.0,0.00015164,2]
[392508062,1761588632558,-500.0,0.00015164,2]
[392508063,1761588632568,-256.85846377,0.00015165,2]
[392508064,1761588632577,-370000.0,0.00015168,2]
[392508065,1761588632587,-500.0,0.00015168,2]
[392508066,1761588632596,-522.24192866,0.00015248,2]
[392508067,1761588632606,-500.0,0.00015266,2]
[392508068,1761588632615,-500.0,0.00015267,2]
[392508069,1761588632624,-500.0,0.00015267,2]
[392508070,1761588632634,-500.0,0.00015276,2]
[392508071,1761588632643,-500.0,0.00015278,2]
[392508072,1761588632653,-500.0,0.00015279,2]
[392508073,1761588632662,-500.0,0.00015279,2]
[392508074,1761588632672,-278.43090321,0.00015279,2]
[392508075,1761588632681,-500.0,0.0001536,2]
[392508076,1761588632691,-500.0,0.0001536,2]
[392508077,1761588632848,-500.0,0.0001536,2]
[392508078,1761588632865,-500.0,0.0001536,2]
[392508079,1761588632875,-500.0,0.0001536,2]
[392508080,1761588632884,-500.0,0.0001536,2]
[392508081,1761588632894,-500.0,0.0001536,2]
[392508082,1761588632903,-500.0,0.0001536,2]
[392508083,1761588632912,-500.0,0.0001536,2]
[392508084,1761588632922,-500.0,0.0001536,2]
[392508085,1761588632931,-500.0,0.0001536,2]
[392508086,1761588632940,-500.0,0.0001536,2]
[392508087,1761588632949,-175.692776,0.00015363,2]
[392508088,1761588632958,-280.72233277,0.000154,2]
[392508089,1761588632967,-500.0,0.000154,2]
[392508090,1761588632984,-500.0,0.000154,2]
[392508091,1761588632996,-500.0,0.000154,2]
[392508092,1761588633007,-500.0,0.000154,2]
[392508093,1761588633017,-500.0,0.000154,2]
[392508094,1761588633027,-500.0,0.000154,2]
[392508095,1761588633037,-500.0,0.000154,2]
[392508096,1761588633048,-619.82603819,0.000154,2]
[392508097,1761588633058,-500.0,0.000154,2]
[392508098,1761588633068,-500.0,0.000154,2]
[392508099,1761588633081,-165.77723617,0.000154,2]
[392508100,1761588633091,-500.0,0.000154,2]
[392508101,1761588633101,-500.0,0.000154,2]
[392508102,1761588633111,-500.0,0.00015442,2]
[392508103,1761588633122,-473.58,0.00015563,2]
[392508104,1761588633133,-300.0,0.00015663,2]
[392508105,1761588633143,-300.0,0.00015663,2]
[392508106,1761588633154,-300.0,0.00015663,2]
[392508107,1761588633164,-300.0,0.00015663,2]
[392508108,1761588633173,-300.0,0.00015663,2]
[392508109,1761588633184,-300.0,0.00015663,2]
[392508110,1761588633194,-300.0,0.00015663,2]
[392508111,1761588633204,-300.0,0.00015663,2]
[392508112,1761588633213,-300.0,0.00015663,2]
[392508113,1761588633223,-300.0,0.00015663,2]
[392508114,1761588633232,-300.0,0.00015663,2]
[392508115,1761588633243,-300.0,0.00015663,2]
[392508116,1761588633252,-300.0,0.00015663,2]
[392508117,1761588633262,-300.0,0.00015663,2]
[392508118,1761588633272,-300.0,0.00015663,2]
[392508119,1761588633282,-600.0,0.00015663,2]
[392508120,1761588633291,-196.0,0.00015708,2]
[392508121,1761588633301,-500.0,0.00015716,2]
[392508122,1761588633311,-500.0,0.00015908,2]
[392508123,1761588633320,-1000.0,0.00015908,2]
[392508124,1761588633330,-1000.0,0.00015908,2]
[392508125,1761588633340,-1000.0,0.00015908,2]
[392508126,1761588633350,-965.08568432,0.00015908,2]
[392508127,1761588633360,-1000.0,0.00015908,2]
[392508128,1761588633370,-1000.0,0.00015908,2]
[392508129,1761588633379,-500.0,0.00015948,2]
[392508130,1761588633389,-608.75644017,0.00015948,2]
[392508131,1761588633399,-501.16942045,0.00015948,2]
[392508132,1761588633409,-500.0,0.00015948,2]
[392508133,1761588633418,-500.0,0.00015948,2]
[392508134,1761588633428,-1000.0,0.00015948,2]
[392508135,1761588633438,-100000.0,0.0001599,2]
[392508136,1761588633448,-151.0,0.0001599,2]
[392508137,1761588633457,-151.0,0.0001599,2]
[392508138,1761588633467,-151.0,0.0001599,2]
[392508139,1761588633477,-466.317,0.00016038,2]
[392508140,1761588633488,-632.0,0.00016038,2]
[392508141,1761588633497,-412.0,0.00016038,2]
[392508142,1761588633507,-1000.0,0.00016136,2]
[392508143,1761588633516,-1000.0,0.00016136,2]
[392508144,1761588633526,-1000.0,0.00016136,2]
[392508145,1761588633535,-1000.0,0.00016136,2]
[392508146,1761588633546,-1000.0,0.00016136,2]
[392508147,1761588633555,-1000.0,0.00016136,2]
[392508148,1761588633564,-1000.0,0.00016136,2]
[392508149,1761588633574,-1000.0,0.00016136,2]
[392508150,1761588633583,-1000.0,0.00016136,2]
[392508151,1761588633593,-1000.0,0.00016136,2]
[392508152,1761588633603,-1000.0,0.00016136,2]
[392508153,1761588633613,-1000.0,0.00016136,2]
[392508154,1761588633622,-1000.0,0.00016136,2]
[392508155,1761588633631,-1000.0,0.00016136,2]
[392508156,1761588633641,-191.87295522,0.00016136,2]
[392508157,1761588633651,-1000.0,0.00016136,2]
[392508158,1761588633660,-1000.0,0.00016136,2]
[392508159,1761588633670,-1000.0,0.00016136,2]
[392508160,1761588633679,-1000.0,0.00016136,2]
[392508161,1761588633689,-1000.0,0.00016136,2]
[392508162,1761588633699,-1000.0,0.00016136,2]
[392508163,1761588633709,-196.0,0.00016306,2]
[392508164,1761588633719,-154.54597051,0.00016315,2]
[392508165,1761588633728,-151.0,0.00016315,2]
[392508166,1761588633739,-203.4246092,0.00016315,2]
[392508167,1761588633749,-151.0,0.00016315,2]
[392508168,1761588633759,-151.90645003,0.00016315,2]
[392508169,1761588633769,-151.0,0.0001637,2]
[392508170,1761588633779,-151.0,0.0001637,2]
[392508171,1761588633789,-198.0,0.00016425,2]
[392508172,1761588633798,-151.0,0.00016438,2]
[392508173,1761588633808,-151.0,0.00016438,2]
[392508174,1761588633818,-153.186882,0.00016438,2]
[392508175,1761588633827,-154.231239,0.00016438,2]
[392508176,1761588633837,-1500.0,0.00016456,2]
[392508177,1761588633847,-1500.0,0.00016456,2]
[392508178,1761588633857,-504.57801962,0.00016456,2]
[392508179,1761588633866,-87.58743164,0.00016456,2]
[392508200,1761588637823,-500.0,0.00015156,2]
[392508201,1761588637833,-208.06388852,0.00015156,2]
[392508202,1761588637843,-500.0,0.00015156,2]
[392508203,1761588637852,-500.0,0.00015156,2]
[392508204,1761588637862,-500.0,0.00015156,2]
[392508205,1761588637871,-500.0,0.00015156,2]
[392508206,1761588637881,-264.58603713,0.00015156,2]
[392508207,1761588637890,-1917.74164359,0.00015158,2]
[392508208,1761588637900,-1917.74164359,0.00015158,2]
[392508209,1761588637909,-1917.74164359,0.00015158,2]
[392508210,1761588637918,-1917.74164359,0.00015158,2]
[392508211,1761588637927,-1138.3464839,0.00015158,2]
[392508212,1761588637946,-779.39515969,0.00015158,2]
[392508213,1761588637955,-419.28695383,0.00015158,2]
[392508262,1761588640207,-1498.45468976,0.00015158,2]
[392508264,1761588640216,-1856.72604085,0.00015158,2]
[392508266,1761588640227,-61.01560274,0.00015158,2]
[392508268,1761588640236,-1917.74164359,0.00015158,2]
[392508270,1761588640245,-1917.74164359,0.00015158,2]
[392508272,1761588640254,-500.0,0.00015162,2]
[392508274,1761588640264,-404.19352032,0.00015162,2]
[392508325,1761588643153,-95.80647968,0.00015162,2]
[392508326,1761588643163,-500.0,0.00015163,2]
[392508327,1761588643172,-500.0,0.00015167,2]
[392508328,1761588643182,-500.0,0.00015167,2]
[392508329,1761588643191,-87.04848159,0.00015167,2]
[392508363,1761588646097,-251.55809091,0.00015158,2]
[392508366,1761588749714,-262.62914429,0.00015005,2]
[392508367,1761588824836,65391.06965751,0.00030137,120]
[392508368,1761588861038,381.65900469,0.0001825,9]
[392508369,1761588963001,1217.51841827,0.00014884,2]
[392508370,1761588985343,1217.51841827,0.00014884,2]
[392508371,1761589007535,1217.51841827,0.00014884,2]
[392508372,1761589029739,1084.8156009,0.00014884,2]
[392508373,1761589043473,710.672461,0.00030137,120]
[392508433,1761589832197,-1217.51841827,0.00015054,2]
[392508435,1761589832207,-233.08885285,0.00015056,2]
[392508437,1761589832218,-151.0,0.00015056,2]
[392508439,1761589832226,-151.0,0.00015056,2]
[392508441,1761589832235,-151.0,0.00015056,2]
[392508443,1761589832245,-151.0,0.00015056,2]
[392508445,1761589832254,-223.39491623,0.00015056,2]
[392508447,1761589832263,-300.0,0.00015059,2]
[392508449,1761589832272,-142.02049963,0.00015059,2]
[392508452,1761589832291,-165.15572672,0.00015059,2]
[392508454,1761589832301,-500.0,0.00015059,2]
[392508456,1761589832311,-500.0,0.00015059,2]
[392508458,1761589832320,-500.0,0.00015059,2]
[392508460,1761589832330,-500.0,0.00015059,2]
[392508462,1761589832339,-500.0,0.00015059,2]
[392508464,1761589832348,-500.0,0.00015059,2]
[392508466,1761589832358,-500.0,0.00015059,2]
[392508468,1761589832367,-500.0,0.00015059,2]
[392508470,1761589832376,-500.0,0.00015059,2]
[392508472,1761589832385,-500.0,0.00015059,2]
[392508474,1761589832394,-192.5593843,0.00015059,2]
[392508476,1761589832403,-500.0,0.00015059,2]
[392508478,1761589832412,-500.0,0.00015059,2]
[392508480,1761589832421,-500.0,0.00015059,2]
[392508482,1761589832431,-500.0,0.00015059,2]
[392508484,1761589832440,-50000.0,0.0001506,2]
[392508486,1761589832449,-512.60810191,0.00015063,2]
[392508488,1761589832459,-500.0,0.00015064,2]
[392508490,1761589832468,-216186.91305246,0.00015065,2]
[392508548,1761589838160,-500.0,0.00015059,2]
[392508549,1761589838171,-500.0,0.00015059,2]
[392508550,1761589838181,-500.0,0.00015061,2]
[392508551,1761589838191,-500.0,0.00015061,2]
[392508552,1761589838201,-237.53176801,0.00015062,2]
[392508553,1761589838210,-526.72476927,0.00015065,2]
[392508580,1761589840747,-492.43826596,0.00015059,2]
[392508581,1761589840757,-6992.71179322,0.00015065,2]
[392508588,1761589843117,-19884.14252969,0.00015065,2]
[392508613,1761589846245,-39618.75825326,0.00015065,2]
[392508616,1761589852568,1813.41798007,0.00014909,2]
[392508618,1761590037024,6128.9060377,0.00014958,2]
[392508619,1761590038964,6128.9060377,0.0001496,2]
[392508620,1761590040970,6128.9060377,0.00014962,2]
[392508621,1761590042973,6128.9060377,0.00014963,2]
[392508622,1761590045044,6128.9060377,0.00014965,2]
[392508623,1761590112166,370000.0,0.00014965,2]
[392508625,1761590259845,178395.4037077,0.00014965,2]
[392508626,1761590265160,-224.10151534,0.00014965,2]
[392508628,1761590419284,870.829,0.00030137,120]
[392508629,1761590462658,224.09881073,0.0001825,9]
[392508630,1761590464002,165.0,8.3e-07,2]
[392508631,1761590465178,165.0,8.3e-07,2]
[392508632,1761590466233,165.0,8.3e-07,2]
[392508633,1761590475733,597.67,0.00012329,2]
[392508634,1761590486134,498.06,0.00012329,2]
[392508635,1761590496712,415.05,0.00012329,2]
[392508636,1761590507381,345.87,0.00012329,2]
[392508637,1761590517898,288.23,0.00012329,2]
[392508638,1761590528309,240.19,0.00012329,2]
[392508639,1761590539010,200.16,0.00012329,2]
[392508640,1761590549542,166.8,0.00012329,2]
[392508641,1761590560096,834.01,0.00012329,2]
[392508642,1761590574104,1034.15669316,0.00014551,2]
[392508643,1761590606118,908.59116033,0.0003,120]
[392508644,1761590608771,4884.81330684,0.0001479,2]
[392508645,1761590608793,192.18669316,0.0001479,2]
[392508646,1761590789543,-211.94225913,0.0001484,2]
[392508647,1761590789563,-66.91564888,0.00014851,2]
[392508702,1761591032346,-1126.25240103,0.00014851,2]
[392508704,1761591032356,-1416.41114746,0.00014959,2]
[392508706,1761591032366,-344.70678617,0.00014959,2]
[392508708,1761591032375,-97.67944009,0.00014959,2]
[392508711,1761591032399,-897.07081859,0.00014959,2]
[392508761,1761591038162,-500.0,0.00014959,2]
[392508763,1761591038172,-500.0,0.00014959,2]
[392508765,1761591038182,-500.0,0.00014959,2]
[392508767,1761591038193,-500.0,0.00014959,2]
[392508769,1761591038202,-500.0,0.00014959,2]
[392508771,1761591038212,-500.00000001,0.00014959,2]
[392508773,1761591038221,-500.0,0.00014959,2]
[392508775,1761591038231,-414.63451806,0.00014959,2]
[392508778,1761591038244,-85.36548194,0.00014959,2]
[392508780,1761591038254,-500.0,0.00014959,2]
[392508782,1761591038265,-500.0,0.00014959,2]
[392508784,1761591038274,-309.87492397,0.00014959,2]
[392508786,1761591038283,-267.16950973,0.00014959,2]
[392508788,1761591038299,-154.49137905,0.00014959,2]
[392508790,1761591038309,-264.71862095,0.00014959,2]
[392508792,1761591038321,-1151.69252651,0.00014959,2]
[392508794,1761591038331,-1416.41114746,0.00014959,2]
[392508796,1761591038341,-1416.41114746,0.00014959,2]
[392508799,1761591038351,-1416.41114746,0.00014959,2]
[392508801,1761591038360,-1416.41114746,0.00014959,2]
[392508802,1761591038371,-1416.41114746,0.00014959,2]
[392508804,1761591038382,-1416.41114746,0.00014959,2]
[392508805,1761591038395,-1416.41114746,0.00014959,2]
[392508807,1761591038406,-1416.41114746,0.00014959,2]
[392508809,1761591038415,-1416.41114746,0.00014959,2]
[392508811,1761591038426,-1416.41114746,0.00014959,2]
[392508813,1761591038435,-1416.41114746,0.00014959,2]
[392508815,1761591038447,-1416.41114746,0.00014959,2]
[392508817,1761591038457,-1416.41114746,0.00014959,2]
[392508819,1761591038471,-1416.41114746,0.00014959,2]
[392508821,1761591038481,-1416.41114746,0.00014959,2]
[392508823,1761591038491,-1416.41114746,0.00014959,2]
[392508825,1761591038501,-1416.41114746,0.00014959,2]
[392508827,1761591038511,-998.0,0.00014959,2]
[392508829,1761591038521,-300.0,0.00014959,2]
[392508830,1761591038530,-300.0,0.00014959,2]
[392508831,1761591038540,-1200.0,0.00014959,2]
[392508833,1761591038669,-50000.0,0.0001496,2]
[392508834,1761591038680,-500.0,0.00014962,2]
[392508835,1761591038691,-500.0,0.00014962,2]
[392508836,1761591038700,-500.0,0.00014962,2]
[392508837,1761591038710,-500.0,0.00014962,2]
[392508838,1761591038719,-500.0,0.00014963,2]
[392508839,1761591038728,-500.0,0.00014963,2]
[392508840,1761591038738,-500.0,0.00014963,2]
[392508841,1761591038748,-500.0,0.00014963,2]
[392508842,1761591038759,-500.0,0.00014963,2]
[392508843,1761591038768,-500.0,0.00014964,2]
[392508844,1761591038778,-500.0,0.00014964,2]
[392508845,1761591038788,-500.0,0.00014964,2]
[392508846,1761591038797,-500.0,0.00014964,2]
[392508847,1761591038807,-500.0,0.00014964,2]
[392508848,1761591038816,-500.0,0.00014964,2]
[392508849,1761591038826,-500.0,0.00014964,2]
[392508850,1761591038835,-433.46703428,0.00014964,2]
[392508851,1761591038846,-500.0,0.00014964,2]
[392508852,1761591038855,-500.0,0.00014964,2]
[392508853,1761591038865,-386.14804497,0.00014964,2]
[392508854,1761591038875,-191380.49477696,0.00014965,2]
[392508855,1761591038884,-44476.4433602,0.0001499,2]
[392508856,1761591038894,-500.0,0.00015,2]
[392508857,1761591038903,-500.0,0.00015,2]
[392508858,1761591038913,-500.0,0.00015,2]
[392508859,1761591038922,-644.74485262,0.00015,2]
[392508860,1761591038932,-500.0,0.00015,2]
[392508861,1761591038943,-500.0,0.00015,2]
[392508862,1761591038952,-637.37364715,0.00015,2]
[392508863,1761591038961,-500.0,0.00015,2]
[392508864,1761591038971,-500.0,0.00015,2]
[392508865,1761591038980,-500.0,0.00015,2]
[392508866,1761591038990,-500.47397651,0.00015,2]
[392508867,1761591038999,-500.0,0.00015,2]
[392508868,1761591039009,-500.0,0.00015,2]
[392508869,1761591039019,-215.85596689,0.00015,2]
[392508870,1761591039028,-500.0,0.00015,2]
[392508871,1761591039038,-500.0,0.00015,2]
[392508872,1761591039048,-500.0,0.00015,2]
[392508873,1761591039058,-512.38663092,0.00015,2]
[392508874,1761591039068,-500.0,0.00015,2]
[392508875,1761591039078,-501.77395195,0.00015,2]
[392508876,1761591039088,-500.0,0.00015,2]
[392508877,1761591039097,-500.0,0.00015,2]
[392508878,1761591039107,-632.47753653,0.00015,2]
[392508879,1761591039116,-500.0,0.00015,2]
[392508880,1761591039126,-500.0,0.00015,2]
[392508881,1761591039136,-500.0,0.00015,2]
[392508882,1761591039145,-500.0,0.00015,2]
[392508883,1761591039155,-500.0,0.00015,2]
[392508884,1761591039164,-500.0,0.00015,2]
[392508885,1761591039174,-343.50407373,0.00015,2]
[392508886,1761591039183,-500.0,0.00015,2]
[392508887,1761591039193,-500.0,0.00015,2]
[392508888,1761591039202,-481.77479607,0.00015,2]
[392508889,1761591039212,-500.0,0.00015,2]
[392508890,1761591039221,-500.0,0.00015,2]
[392508891,1761591039232,-500.0,0.00015,2]
[392508892,1761591039243,-500.0,0.00015,2]
[392508893,1761591039253,-500.0,0.00015,2]
[392508894,1761591039263,-500.33023533,0.00015,2]
[392508895,1761591039272,-521.94014921,0.00015044,2]
[392508896,1761591039282,-160.0,0.00015048,2]